[Event "Chinese Team-ch Men 2025"]
[Site "Zhang Jiakou Hebei"]
[Date "2025.04.30"]
[Round "6.33"]
[White "Gong, Changda"]
[Black "Ma, Lin"]
[Result "1/2-1/2"]
[Annotator "ChessBase"]
[ECO "A20"]
[WhiteElo "2131"]
[BlackElo "2221"]
[PlyCount "65"]
[EventDate "2025.04.26"]
[EventType "team-tourn"]
[EventCountry "CHN"]
[SourceTitle "playchess.com"]
[Source "ChessBase"]
[SourceQuality "1"]
[TimeControl "5400+30"]

1. c4 {[%emt 0:00:19]} e5 {[%emt 0:00:45]} 2. g3 {[%emt 0:00:05]} Nf6 {[%emt 0:04:45]} 3. Bg2 {[%emt 0:00:04]} c6 {[%emt 0:00:07]} 4. Nf3 {[%emt 0:00:05]} e4 {[%emt 0:00:07]} 5. Nd4 {[%emt 0:00:04]} d5 {[%emt 0:00:04]} 6. cxd5 {[%emt 0:00:14]} Qxd5 {[%emt 0:00:20]} 7. e3 {[%emt 0:00:03]} Bc5 {[%emt 0:08:02]} 8. d3 {[%emt 0:01:29]} Bxd4 {[%emt 0:24:22]} 9. exd4 {[%emt 0:00:15]} Qxd4 {[%emt 0:06:24]} 10. dxe4 {[%emt 0:00:05]} Qxd1+ {[%emt 0:00:13]} 11. Kxd1 {[%emt 0:00:02]} Be6 {[%emt 0:01:20]} 12. Nc3 {[%emt 0:01:50]} Na6 {[%emt 0:00:26]} 13. b3 {[%emt 0:03:39]} Nb4 {[%emt 0:07:53]} 14. f3 {[%emt 0:06:54]} a5 {[%emt 0:05:04]} 15. Ke2 {[%emt 0:05:36]} O-O {[%emt 0:02:52]} 16. Na4 {[%emt 0:05:27]} Nd7 {[%emt 0:03:10]} 17. Be3 {[%emt 0:02:20]} f5 {[%emt 0:01:44]} 18. Nc5 {[%emt 0:05:33]} Nxc5 {[%emt 0:00:36]} 19. Bxc5 {[%emt 0:00:04]} Rfe8 {[%emt 0:00:14]} 20. a3 {[%emt 0:16:34]} Na6 {[%emt 0:09:52]} 21. b4 {[%emt 0:00:08]} fxe4 {[%emt 0:00:55]} 22. fxe4 {[%emt 0:00:11]} axb4 {[%emt 0:01:52]} 23. axb4 {[%emt 0:00:32]} Rad8 {[%emt 0:00:57]} 24. Ke3 {[%emt 0:02:15]} Bb3 {[%emt 0:01:12]} 25. Rab1 {[%emt 0:03:42]} Ba2 {[%emt 0:01:03]} 26. Rbd1 {[%emt 0:01:53]} Bb3 {[%emt 0:02:02]} 27. Rd6 {[%emt 0:02:46]} Nc7 {[%emt 0:05:22]} 28. Rb1 {[%emt 0:03:29]} Be6 {[%emt 0:01:16]} 29. Rbd1 {[%emt 0:04:18]} Ra8 {[%emt 0:00:57]} 30. R6d4 {[%emt 0:14:59]} Ra3+ {[%emt 0:02:32]} 31. R1d3 {[%emt 0:00:52]} Ra2 {[%emt 0:00:09]} 32. Rd2 {[%emt 0:00:06]} Ra3+ {[%emt 0:00:06]} 33. R2d3 {[%emt 0:00:05]} 1/2-1/2

[Event "Chinese Team-ch Men 2025"]
[Site "Zhang Jiakou Hebei"]
[Date "2025.04.30"]
[Round "6.34"]
[White "Sun, Chao"]
[Black "Qu, Haoming"]
[Result "1-0"]
[Annotator "ChessBase"]
[ECO "D00"]
[WhiteElo "2211"]
[BlackElo "2066"]
[PlyCount "91"]
[EventDate "2025.04.26"]
[EventType "team-tourn"]
[EventCountry "CHN"]
[SourceTitle "playchess.com"]
[Source "ChessBase"]
[SourceQuality "1"]
[TimeControl "5400+30"]

1. d4 {[%emt 0:00:18]} d5 {[%emt 0:00:12]} 2. Bf4 {[%emt 0:00:15]} c6 {[%emt 0:01:13]} 3. e3 {[%emt 0:00:23]} Qb6 {[%emt 0:00:27]} 4. Qc1 {[%emt 0:06:17]} Bf5 {[%emt 0:00:12]} 5. Nd2 {[%emt 0:00:38]} e6 {[%emt 0:00:16]} 6. Ngf3 {[%emt 0:06:51]} Nd7 {[%emt 0:01:52]} 7. c4 {[%emt 0:08:22]} Ngf6 {[%emt 0:02:06]} 8. c5 {[%emt 0:00:53]} Qd8 {[%emt 0:04:40]} 9. b4 {[%emt 0:01:43]} h6 {[%emt 0:01:25]} 10. h3 {[%emt 0:04:46]} g5 {[%emt 0:06:05]} 11. Bh2 {[%emt 0:00:19]} Bg7 {[%emt 0:00:08]} 12. Be2 {[%emt 0:03:29]} Ne4 {[%emt 0:24:06]} 13. a4 {[%emt 0:02:29]} O-O {[%emt 0:01:38]} 14. O-O {[%emt 0:01:45]} g4 {[%emt 0:11:24]} 15. hxg4 {[%emt 0:00:26]} Bxg4 {[%emt 0:00:00]} 16. Re1 {[%emt 0:00:54]} f5 {[%emt 0:02:43]} 17. b5 {[%emt 0:05:44]} Nxd2 {[%emt 0:09:31]} 18. Qxd2 {[%emt 0:00:52]} Bxf3 {[%emt 0:00:24]} 19. Bxf3 {[%emt 0:01:25]} e5 {[%emt 0:00:17]} 20. bxc6 {[%emt 0:06:40]} bxc6 {[%emt 0:00:06]} 21. Rab1 {[%emt 0:00:59]} Rb8 {[%emt 0:06:27]} 22. dxe5 {[%emt 0:04:52]} Nxe5 {[%emt 0:01:29]} 23. Be2 {[%emt 0:04:06]} Qc7 {[%emt 0:04:09]} 24. Qc2 {[%emt 0:02:40]} Qa5 {[%emt 0:01:44]} 25. Rec1 {[%emt 0:03:42]} Rb4 {[%emt 0:01:18]} 26. Rxb4 {[%emt 0:08:48]} Qxb4 {[%emt 0:00:04]} 27. Rb1 {[%emt 0:09:23]} Qa3 {[%emt 0:03:23]} 28. Bf4 {[%emt 0:01:00]} a5 {[%emt 0:01:57]} 29. g3 {[%emt 0:02:23]} Kh8 {[%emt 0:05:10]} 30. Kg2 {[%emt 0:00:25]} Ng6 {[%emt 0:00:39]} 31. Bd6 {[%emt 0:00:17]} Rf7 {[%emt 0:00:17]} 32. Bd3 {[%emt 0:02:53]} Qc3 {[%emt 0:01:45]} 33. Rb8+ {[%emt 0:01:22]} Kh7 {[%emt 0:00:15]} 34. Bxf5 {[%emt 0:00:06]} Qxc2 {[%emt 0:00:23]} 35. Bxc2 {[%emt 0:00:05]} d4 {[%emt 0:00:04]} 36. f4 {[%emt 0:01:12]} Bf6 {[%emt 0:00:49]} 37. e4 {[%emt 0:03:11]} Be7 {[%emt 0:00:14]} 38. e5 {[%emt 0:00:18]} Bxd6 {[%emt 0:00:27]} 39. cxd6 {[%emt 0:00:08]} Kg7 {[%emt 0:00:05]} 40. Bxg6 {[%emt 0:00:40]} Kxg6 {[%emt 0:00:06]} 41. e6 {[%emt 0:00:05]} Rg7 {[%emt 0:00:14]} 42. e7 {[%emt 0:00:09]} d3 {[%emt 0:00:10]} 43. e8=Q+ {[%emt 0:00:06]} Kh7 {[%emt 0:00:07]} 44. f5 {[%emt 0:00:21]} Rxg3+ {[%emt 0:00:12]} 45. Kxg3 {[%emt 0:00:04]} d2 {[%emt 0:00:07]} 46. Qh8# {[%emt 0:00:06]} 1-0

[Event "Chinese Team-ch Men 2025"]
[Site "Zhang Jiakou Hebei"]
[Date "2025.05.01"]
[Round "7.1"]
[White "Wen, Yang"]
[Black "Xu, Yinglun"]
[Result "1/2-1/2"]
[Annotator "ChessBase"]
[ECO "E39"]
[WhiteElo "2572"]
[BlackElo "2522"]
[PlyCount "50"]
[EventDate "2025.04.26"]
[EventType "team-tourn"]
[EventCountry "CHN"]
[SourceTitle "playchess.com"]
[Source "ChessBase"]
[SourceQuality "1"]
[TimeControl "5400+30"]

1. d4 {[%emt 0:00:05]} Nf6 {[%emt 0:00:30]} 2. c4 {[%emt 0:00:10]} e6 {[%emt 0:00:31]} 3. Nc3 {[%emt 0:01:04]} Bb4 {[%emt 0:02:09]} 4. Qc2 {[%emt 0:00:36]} c5 {[%emt 0:00:54]} 5. dxc5 {[%emt 0:00:44]} O-O {[%emt 0:01:21]} 6. a3 {[%emt 0:04:03]} Bxc5 {[%emt 0:00:57]} 7. Nf3 {[%emt 0:00:09]} d5 {[%emt 0:04:24]} 8. cxd5 {[%emt 0:05:09]} exd5 {[%emt 0:00:58]} 9. Bg5 {[%emt 0:00:09]} Be6 {[%emt 0:00:19]} 10. e3 {[%emt 0:03:42]} h6 {[%emt 0:03:24]} 11. Bh4 {[%emt 0:04:26]} Nc6 {[%emt 0:00:23]} 12. Rd1 {[%emt 0:00:45]} d4 {[%emt 0:01:26]} 13. Bxf6 {[%emt 0:05:09]} Qxf6 {[%emt 0:00:21]} 14. Ne4 {[%emt 0:00:34]} Qg6 {[%emt 0:00:43]} 15. Qxc5 {[%emt 0:00:22]} Qxe4 {[%emt 0:00:07]} 16. Bd3 {[%emt 0:01:13]} Qd5 {[%emt 0:03:22]} 17. exd4 {[%emt 0:01:18]} b6 {[%emt 0:00:14]} 18. Qb5 {[%emt 0:02:00]} a6 {[%emt 0:00:42]} 19. Qxb6 {[%emt 0:01:38]} Bg4 {[%emt 0:00:33]} 20. O-O {[%emt 0:01:24]} Bxf3 {[%emt 0:00:18]} 21. gxf3 {[%emt 0:00:06]} Qxf3 {[%emt 0:00:08]} 22. d5 {[%emt 0:01:31]} Qg4+ {[%emt 0:00:22]} 23. Kh1 {[%emt 0:00:07]} Qf3+ {[%emt 0:00:05]} 24. Kg1 {[%emt 0:00:08]} Qg4+ {[%emt 0:00:06]} 25. Kh1 {[%emt 0:00:13]} Qf3+ {[%emt 0:00:06]} 1/2-1/2

[Event "Chinese Team-ch Men 2025"]
[Site "Zhang Jiakou Hebei"]
[Date "2025.05.01"]
[Round "7.2"]
[White "Zhao, Chenxi"]
[Black "Zhao, Jun"]
[Result "1/2-1/2"]
[Annotator "ChessBase"]
[ECO "D02"]
[WhiteElo "2453"]
[BlackElo "2532"]
[PlyCount "64"]
[EventDate "2025.04.26"]
[EventType "team-tourn"]
[EventCountry "CHN"]
[SourceTitle "playchess.com"]
[Source "ChessBase"]
[SourceQuality "1"]
[TimeControl "5400+30"]

1. d4 {[%emt 0:00:03]} d5 {[%emt 0:00:28]} 2. Nf3 {[%emt 0:00:06]} Nf6 {[%emt 0:00:11]} 3. Bf4 {[%emt 0:00:21]} e6 {[%emt 0:01:44]} 4. e3 {[%emt 0:00:13]} c5 {[%emt 0:00:29]} 5. c3 {[%emt 0:00:42]} Nc6 {[%emt 0:02:29]} 6. Nbd2 {[%emt 0:01:10]} Bd6 {[%emt 0:01:23]} 7. Bg3 {[%emt 0:00:49]} O-O {[%emt 0:03:17]} 8. Bd3 {[%emt 0:00:33]} b6 {[%emt 0:00:51]} 9. O-O {[%emt 0:01:17]} Bb7 {[%emt 0:03:53]} 10. Qe2 {[%emt 0:02:25]} Re8 {[%emt 0:04:48]} 11. Ne5 {[%emt 0:00:51]} Qc7 {[%emt 0:01:23]} 12. Nxc6 {[%emt 0:01:44]} Bxc6 {[%emt 0:00:44]} 13. Bxd6 {[%emt 0:00:19]} Qxd6 {[%emt 0:00:08]} 14. dxc5 {[%emt 0:00:30]} Qxc5 {[%emt 0:00:24]} 15. e4 {[%emt 0:01:26]} dxe4 {[%emt 0:00:26]} 16. Nxe4 {[%emt 0:00:12]} Bxe4 {[%emt 0:00:07]} 17. Bxe4 {[%emt 0:00:09]} Nxe4 {[%emt 0:00:06]} 18. Qxe4 {[%emt 0:00:05]} Rad8 {[%emt 0:00:16]} 19. Rad1 {[%emt 0:00:25]} Qc7 {[%emt 0:00:17]} 20. h3 {[%emt 0:00:33]} h6 {[%emt 0:00:55]} 21. a4 {[%emt 0:00:40]} Rxd1 {[%emt 0:01:32]} 22. Rxd1 {[%emt 0:00:06]} Rd8 {[%emt 0:00:05]} 23. Rxd8+ {[%emt 0:01:33]} Qxd8 {[%emt 0:00:05]} 24. Qb7 {[%emt 0:00:56]} a5 {[%emt 0:01:15]} 25. g3 {[%emt 0:00:50]} Qd1+ {[%emt 0:01:40]} 26. Kg2 {[%emt 0:01:17]} Qb3 {[%emt 0:00:56]} 27. Qa8+ {[%emt 0:01:09]} Kh7 {[%emt 0:00:04]} 28. Qe8 {[%emt 0:00:42]} Qd5+ {[%emt 0:00:39]} 29. Kg1 {[%emt 0:00:10]} Qd1+ {[%emt 0:00:04]} 30. Kg2 {[%emt 0:00:05]} Qd5+ {[%emt 0:00:06]} 31. Kg1 {[%emt 0:00:04]} Qd1+ {[%emt 0:00:05]} 32. Kg2 {[%emt 0:00:08]} Qd5+ {[%emt 0:00:07]} 1/2-1/2

[Event "Chinese Team-ch Men 2025"]
[Site "Zhang Jiakou Hebei"]
[Date "2025.05.01"]
[Round "7.3"]
[White "Xiao, Tong"]
[Black "Li, Shilong"]
[Result "1-0"]
[Annotator "ChessBase"]
[ECO "C02"]
[WhiteElo "2496"]
[BlackElo "2406"]
[PlyCount "89"]
[EventDate "2025.04.26"]
[EventType "team-tourn"]
[EventCountry "CHN"]
[SourceTitle "playchess.com"]
[Source "ChessBase"]
[SourceQuality "1"]
[TimeControl "5400+30"]

1. e4 {[%emt 0:00:04]} e6 {[%emt 0:00:04]} 2. d4 {[%emt 0:02:30]} d5 {[%emt 0:00:05]} 3. e5 {[%emt 0:00:38]} c5 {[%emt 0:00:05]} 4. c3 {[%emt 0:00:06]} Nc6 {[%emt 0:00:01]} 5. Nf3 {[%emt 0:00:09]} Bd7 {[%emt 0:00:04]} 6. a3 {[%emt 0:00:16]} Nge7 {[%emt 0:06:53]} 7. Bd3 {[%emt 0:05:14]} cxd4 {[%emt 0:01:08]} 8. cxd4 {[%emt 0:00:12]} Nf5 {[%emt 0:00:01]} 9. Bxf5 {[%emt 0:02:38]} exf5 {[%emt 0:00:02]} 10. Nc3 {[%emt 0:00:22]} Be6 {[%emt 0:00:11]} 11. O-O {[%emt 0:03:37]} Be7 {[%emt 0:00:26]} 12. b4 {[%emt 0:01:27]} g5 {[%emt 0:01:12]} 13. Qd3 {[%emt 0:11:01]} f4 {[%emt 0:01:24]} 14. Nd2 {[%emt 0:02:01]} Qd7 {[%emt 0:43:49]} 15. Nb3 {[%emt 0:02:02]} b6 {[%emt 0:00:35]} 16. Bd2 {[%emt 0:14:40]} O-O {[%emt 0:16:54]} 17. Rfc1 {[%emt 0:15:43]} f6 {[%emt 0:01:28]} 18. b5 {[%emt 0:06:03]} Nd8 {[%emt 0:00:14]} 19. Na2 {[%emt 0:04:23]} Bf5 {[%emt 0:05:42]} 20. Qe2 {[%emt 0:00:47]} fxe5 {[%emt 0:00:49]} 21. dxe5 {[%emt 0:00:07]} Ne6 {[%emt 0:00:04]} 22. Bb4 {[%emt 0:02:54]} f3 {[%emt 0:00:23]} 23. Qxf3 {[%emt 0:01:08]} Be4 {[%emt 0:01:46]} 24. Qg4 {[%emt 0:05:36]} Rf4 {[%emt 0:06:28]} 25. Qd1 {[%emt 0:00:18]} Raf8 {[%emt 0:07:54]} 26. f3 {[%emt 0:02:06]} Rxf3 {[%emt 0:00:07]} 27. Nd2 {[%emt 0:02:11]} Rd3 {[%emt 0:04:05]} 28. Bxe7 {[%emt 0:00:43]} Qxe7 {[%emt 0:01:23]} 29. Nb4 {[%emt 0:00:02]} Rxd2 {[%emt 0:00:48]} 30. Qxd2 {[%emt 0:00:01]} Nf4 {[%emt 0:00:04]} 31. Nc6 {[%emt 0:05:59]} Qe6 {[%emt 0:00:09]} 32. Rf1 {[%emt 0:03:57]} Qg4 {[%emt 0:00:11]} 33. Rxf4 {[%emt 0:02:00]} gxf4 {[%emt 0:00:31]} 34. Rf1 {[%emt 0:00:10]} Rf7 {[%emt 0:00:57]} 35. h3 {[%emt 0:00:33]} Qg6 {[%emt 0:00:20]} 36. Rxf4 {[%emt 0:00:15]} h5 {[%emt 0:01:31]} 37. e6 {[%emt 0:05:11]} Rg7 {[%emt 0:00:38]} 38. e7 {[%emt 0:00:02]} Kh7 {[%emt 0:00:21]} 39. Rf8 {[%emt 0:00:40]} Bxg2 {[%emt 0:00:01]} 40. e8=Q {[%emt 0:00:07]} Qb1+ {[%emt 0:00:04]} 41. Qee1 {[%emt 0:00:15]} Be4+ {[%emt 0:00:07]} 42. Kf1 {[%emt 0:00:06]} Qxb5+ {[%emt 0:01:11]} 43. Qee2 {[%emt 0:00:16]} Qb1+ {[%emt 0:01:15]} 44. Qdd1 {[%emt 0:00:18]} Bg2+ {[%emt 0:00:28]} 45. Ke1 {[%emt 0:00:02]} 1-0

[Event "Chinese Team-ch Men 2025"]
[Site "Zhang Jiakou Hebei"]
[Date "2025.05.01"]
[Round "7.4"]
[White "Wu, Yixing"]
[Black "Huang, Renjie"]
[Result "1/2-1/2"]
[Annotator "ChessBase"]
[ECO "D02"]
[WhiteElo "2406"]
[BlackElo "2491"]
[PlyCount "66"]
[EventDate "2025.04.26"]
[EventType "team-tourn"]
[EventCountry "CHN"]
[SourceTitle "playchess.com"]
[Source "ChessBase"]
[SourceQuality "1"]
[TimeControl "5400+30"]

1. Nf3 {[%emt 0:00:03]} d5 {[%emt 0:05:02]} 2. g3 {[%emt 0:00:04]} Nd7 {[%emt 0:00:07]} 3. d4 {[%emt 0:00:11]} Nb6 {[%emt 0:00:05]} 4. Bg2 {[%emt 0:00:43]} Bf5 {[%emt 0:00:57]} 5. O-O {[%emt 0:00:20]} e6 {[%emt 0:00:04]} 6. b3 {[%emt 0:01:04]} Be7 {[%emt 0:01:09]} 7. c4 {[%emt 0:01:16]} c6 {[%emt 0:00:18]} 8. Nc3 {[%emt 0:06:50]} Nf6 {[%emt 0:02:32]} 9. Nd2 {[%emt 0:02:53]} O-O {[%emt 0:03:50]} 10. Bb2 {[%emt 0:01:21]} a5 {[%emt 0:05:49]} 11. e4 {[%emt 0:01:08]} dxe4 {[%emt 0:00:52]} 12. Ndxe4 {[%emt 0:00:38]} a4 {[%emt 0:00:33]} 13. Nxf6+ {[%emt 0:03:49]} Bxf6 {[%emt 0:00:07]} 14. Ne4 {[%emt 0:00:09]} Be7 {[%emt 0:08:29]} 15. Bc3 {[%emt 0:05:48]} Nd7 {[%emt 0:01:33]} 16. Qe2 {[%emt 0:05:37]} Nf6 {[%emt 0:02:30]} 17. Nxf6+ {[%emt 0:01:51]} Bxf6 {[%emt 0:00:14]} 18. Qe3 {[%emt 0:00:59]} axb3 {[%emt 0:01:29]} 19. axb3 {[%emt 0:00:07]} Qb6 {[%emt 0:00:22]} 20. b4 {[%emt 0:01:06]} Rfd8 {[%emt 0:01:04]} 21. Rfd1 {[%emt 0:01:30]} h6 {[%emt 0:02:17]} 22. c5 {[%emt 0:02:11]} Qc7 {[%emt 0:01:09]} 23. h4 {[%emt 0:02:39]} Qd7 {[%emt 0:03:21]} 24. Rxa8 {[%emt 0:01:57]} Rxa8 {[%emt 0:00:05]} 25. Ra1 {[%emt 0:00:13]} Qd8 {[%emt 0:02:37]} 26. Qc1 {[%emt 0:00:23]} Bd3 {[%emt 0:00:51]} 27. Ra2 Ra5 28. Rxa5 Qc8 29. Ra8 Qxa8 30. d5 exd5 31. Bxf6 gxf6 32. Qc3 Bg6 33. Qxf6 Qa3 {[%emt 0:03:30]} 1/2-1/2

[Event "Chinese Team-ch Men 2025"]
[Site "Zhang Jiakou Hebei"]
[Date "2025.05.01"]
[Round "7.6"]
[White "Xiu, Deshun"]
[Black "Dai, Changren"]
[Result "1/2-1/2"]
[Annotator "ChessBase"]
[ECO "E47"]
[WhiteElo "2516"]
[BlackElo "2527"]
[PlyCount "90"]
[EventDate "2025.04.26"]
[EventType "team-tourn"]
[EventCountry "CHN"]
[SourceTitle "playchess.com"]
[Source "ChessBase"]
[SourceQuality "1"]
[TimeControl "5400+30"]

1. d4 {[%emt 0:00:03]} Nf6 {[%emt 0:00:07]} 2. c4 {[%emt 0:00:06]} e6 {[%emt 0:00:03]} 3. Nc3 {[%emt 0:00:42]} Bb4 {[%emt 0:00:13]} 4. e3 {[%emt 0:00:53]} O-O {[%emt 0:00:33]} 5. Bd3 {[%emt 0:00:10]} Re8 {[%emt 0:00:08]} 6. Bd2 {[%emt 0:05:07]} c5 {[%emt 0:09:35]} 7. a3 {[%emt 0:16:09]} Bxc3 {[%emt 0:00:20]} 8. Bxc3 {[%emt 0:00:08]} cxd4 {[%emt 0:01:05]} 9. exd4 {[%emt 0:00:18]} d5 {[%emt 0:01:43]} 10. b3 {[%emt 0:04:53]} Nbd7 {[%emt 0:15:27]} 11. Nf3 {[%emt 0:00:45]} b6 {[%emt 0:00:36]} 12. O-O {[%emt 0:00:09]} Bb7 {[%emt 0:01:50]} 13. Re1 {[%emt 0:01:30]} Rc8 {[%emt 0:06:21]} 14. Bb2 {[%emt 0:02:02]} Qc7 {[%emt 0:12:43]} 15. Rc1 {[%emt 0:13:32]} Qf4 {[%emt 0:07:24]} 16. g3 {[%emt 0:07:49]} Qd6 {[%emt 0:02:16]} 17. Bf1 {[%emt 0:01:49]} dxc4 {[%emt 0:11:04]} 18. bxc4 {[%emt 0:00:09]} b5 {[%emt 0:00:11]} 19. c5 {[%emt 0:04:10]} Qc6 {[%emt 0:10:05]} 20. Bg2 {[%emt 0:00:22]} Qa6 {[%emt 0:00:01]} 21. Qe2 {[%emt 0:09:51]} Qa4 {[%emt 0:02:53]} 22. Qd1 {[%emt 0:03:47]} Qa6 {[%emt 0:00:32]} 23. Qe2 {[%emt 0:00:48]} Qa4 {[%emt 0:00:10]} 24. Qd1 {[%emt 0:00:33]} Qxd1 {[%emt 0:00:13]} 25. Rexd1 {[%emt 0:00:19]} Bd5 {[%emt 0:00:24]} 26. Nd2 {[%emt 0:01:32]} Bxg2 {[%emt 0:03:18]} 27. Kxg2 {[%emt 0:00:03]} Nb8 {[%emt 0:00:19]} 28. a4 {[%emt 0:03:38]} a6 {[%emt 0:00:05]} 29. axb5 {[%emt 0:00:51]} axb5 {[%emt 0:00:02]} 30. Ra1 {[%emt 0:05:14]} Nc6 {[%emt 0:00:10]} 31. Nb3 {[%emt 0:00:47]} Ra8 {[%emt 0:01:32]} 32. Rxa8 {[%emt 0:00:42]} Rxa8 {[%emt 0:00:13]} 33. Ra1 {[%emt 0:00:10]} Rxa1 {[%emt 0:03:01]} 34. Bxa1 {[%emt 0:00:18]} Nd5 {[%emt 0:01:31]} 35. Bb2 {[%emt 0:01:38]} f5 {[%emt 0:01:31]} 36. Bc1 {[%emt 0:01:13]} Kf7 {[%emt 0:00:26]} 37. Kf3 {[%emt 0:00:13]} Kf6 {[%emt 0:01:29]} 38. h4 {[%emt 0:00:56]} h6 {[%emt 0:00:21]} 39. Ke2 {[%emt 0:02:36]} g5 {[%emt 0:01:11]} 40. hxg5+ {[%emt 0:00:04]} hxg5 {[%emt 0:00:06]} 41. Bd2 {[%emt 0:00:52]} g4 {[%emt 0:01:50]} 42. f3 {[%emt 0:03:27]} Kg6 {[%emt 0:03:45]} 43. Kf2 {[%emt 0:01:22]} Kf7 {[%emt 0:00:01]} 44. Ke2 {[%emt 0:00:15]} Kf6 {[%emt 0:00:02]} 45. Be1 {[%emt 0:00:43]} Kg6 {[%emt 0:02:28]} 1/2-1/2

[Event "Chinese Team-ch Men 2025"]
[Site "Zhang Jiakou Hebei"]
[Date "2025.05.01"]
[Round "7.7"]
[White "Wang, Shixu B"]
[Black "Zhang, Di"]
[Result "0-1"]
[Annotator "ChessBase"]
[ECO "D38"]
[WhiteElo "2452"]
[BlackElo "2406"]
[PlyCount "120"]
[EventDate "2025.04.26"]
[EventType "team-tourn"]
[EventCountry "CHN"]
[SourceTitle "playchess.com"]
[Source "ChessBase"]
[SourceQuality "1"]
[TimeControl "5400+30"]

1. Nf3 {[%emt 0:00:20]} Nf6 {[%emt 0:00:12]} 2. c4 {[%emt 0:00:26]} e6 {[%emt 0:00:10]} 3. d4 {[%emt 0:00:18]} d5 {[%emt 0:00:07]} 4. Nc3 {[%emt 0:00:06]} Bb4 {[%emt 0:00:04]} 5. Bg5 {[%emt 0:00:15]} h6 {[%emt 0:00:06]} 6. Bxf6 {[%emt 0:00:10]} Qxf6 {[%emt 0:00:03]} 7. Qa4+ {[%emt 0:00:37]} Nc6 {[%emt 0:00:06]} 8. e3 {[%emt 0:00:11]} O-O {[%emt 0:00:12]} 9. Be2 {[%emt 0:00:05]} dxc4 {[%emt 0:15:07]} 10. O-O {[%emt 0:00:43]} Bd7 {[%emt 0:00:45]} 11. Bxc4 {[%emt 0:00:41]} Bxc3 {[%emt 0:00:05]} 12. bxc3 {[%emt 0:00:09]} Rfd8 {[%emt 0:00:01]} 13. Be2 {[%emt 0:00:24]} Rab8 {[%emt 0:04:21]} 14. Rfd1 {[%emt 0:11:45]} Be8 {[%emt 0:07:54]} 15. Qa3 {[%emt 0:00:29]} Qe7 {[%emt 0:00:05]} 16. Qb2 {[%emt 0:00:42]} Na5 {[%emt 0:16:29]} 17. Qb4 {[%emt 0:12:33]} Nc6 {[%emt 0:00:11]} 18. Qb1 {[%emt 0:01:46]} Na5 {[%emt 0:03:40]} 19. Qe4 {[%emt 0:06:22]} Bc6 {[%emt 0:07:04]} 20. Qf4 {[%emt 0:00:34]} Bxf3 {[%emt 0:01:37]} 21. Bxf3 {[%emt 0:02:55]} Qd6 {[%emt 0:13:06]} 22. Qe4 {[%emt 0:04:39]} c5 {[%emt 0:03:50]} 23. h4 {[%emt 0:02:10]} Rbc8 {[%emt 0:09:22]} 24. h5 {[%emt 0:01:05]} b6 {[%emt 0:00:50]} 25. Qh4 {[%emt 0:02:12]} cxd4 {[%emt 0:04:27]} 26. cxd4 {[%emt 0:04:46]} Nc4 {[%emt 0:00:37]} 27. a4 {[%emt 0:04:02]} Rc7 {[%emt 0:03:35]} 28. Qe4 {[%emt 0:18:42]} Rdc8 {[%emt 0:01:09]} 29. g3 {[%emt 0:00:24]} Qe7 {[%emt 0:01:25]} 30. Ra2 {[%emt 0:02:01]} Nd6 {[%emt 0:02:41]} 31. Qf4 {[%emt 0:00:18]} Rc4 {[%emt 0:01:37]} 32. Kg2 {[%emt 0:02:14]} Rb4 {[%emt 0:01:02]} 33. Rdd2 {[%emt 0:01:42]} Rbc4 {[%emt 0:00:39]} 34. Kh2 {[%emt 0:03:18]} Kf8 {[%emt 0:00:19]} 35. Be2 {[%emt 0:01:14]} Rc1 {[%emt 0:00:56]} 36. Ba6 {[%emt 0:00:56]} R8c3 {[%emt 0:00:32]} 37. Qe5 {[%emt 0:03:53]} f6 {[%emt 0:00:43]} 38. Qf4 {[%emt 0:00:03]} Qd7 {[%emt 0:00:49]} 39. Be2 {[%emt 0:00:11]} Ke7 {[%emt 0:01:35]} 40. Qg4 {[%emt 0:01:06]} Nf7 {[%emt 0:01:01]} 41. d5 {[%emt 0:02:17]} exd5 {[%emt 0:00:30]} 42. Qxg7 {[%emt 0:04:43]} Qf5 {[%emt 0:00:11]} 43. Bg4 {[%emt 0:00:13]} Qe4 {[%emt 0:00:32]} 44. Bd1 {[%emt 0:00:10]} Rd3 {[%emt 0:01:06]} 45. Qg4 {[%emt 0:02:35]} Ne5 {[%emt 0:00:10]} 46. Qxe4 {[%emt 0:00:22]} dxe4 {[%emt 0:00:01]} 47. Be2 {[%emt 0:01:09]} Rxd2 {[%emt 0:00:55]} 48. Rxd2 {[%emt 0:00:02]} Ra1 {[%emt 0:00:28]} 49. Bd1 {[%emt 0:03:55]} Rxa4 {[%emt 0:01:14]} 50. g4 {[%emt 0:00:37]} Rb4 {[%emt 0:00:17]} 51. Kg3 {[%emt 0:00:08]} Nf7 {[%emt 0:00:51]} 52. Rc2 {[%emt 0:00:21]} Kd7 {[%emt 0:00:15]} 53. Rd2+ {[%emt 0:02:13]} Nd6 {[%emt 0:00:01]} 54. Kf4 {[%emt 0:00:38]} Ke6 {[%emt 0:00:31]} 55. Rc2 {[%emt 0:00:17]} a5 {[%emt 0:01:03]} 56. Rc7 {[%emt 0:00:07]} a4 {[%emt 0:00:07]} 57. Bc2 {[%emt 0:01:14]} b5 {[%emt 0:00:16]} 58. Bd1 {[%emt 0:01:18]} Rb1 {[%emt 0:00:48]} 59. Bc2 {[%emt 0:00:12]} Rb2 {[%emt 0:00:48]} 60. f3 {[%emt 0:00:03]} a3 {[%emt 0:00:29]} 0-1